bitfinex/quotes_ETHUSD_20240714
["timestamp","ask_amount","ask_price","bid_price","bid_amount"]
[1720982819587,2.4742,3194.3,3193.9,2.50476]
[1720982826621,2.4742,3194.3,3194.0,2.50466]
[1720982826833,0.49143416,3194.4,3194.0,2.50466]
[1720982827685,0.49143416,3194.4,3194.3,2.50446]
[1720982828106,0.57524517,3194.4,3194.3,2.50446]
[1720982828308,0.49143416,3194.4,3194.3,2.50446]
[1720982828510,0.57524517,3194.4,3194.3,2.50446]
[1720982830535,0.57524517,3194.4,3194.3,5.00892]
[1720982836040,0.49143416,3194.4,3194.3,5.00892]
[1720982840719,0.57532581,3194.4,3194.3,5.00892]
[1720982842540,0.5483953,3194.4,3194.3,5.00892]
[1720982842727,0.49143416,3194.4,3194.3,5.835472]
[1720982842933,0.49143416,3194.4,3194.3,10.804532]
[1720982843182,0.49143416,3194.4,3194.3,11.354532]
[1720982847671,0.49143416,3194.4,3194.3,12.146532]
[1720982864180,0.49143416,3194.4,3194.3,9.131932]
[1720982864401,0.49143416,3194.4,3194.3,5.00892]
[1720982872221,0.57206308,3194.4,3194.3,5.00892]
[1720982875215,0.57206308,3194.4,3194.3,7.34312]
[1720982875402,0.49143416,3194.4,3194.3,7.34312]
[1720982875725,0.49143416,3194.4,3194.3,8.40709]
[1720982882416,0.49143416,3194.4,3194.3,7.34312]
[1720982884626,0.49143416,3194.4,3194.3,9.84758]
[1720982885712,0.49143416,3194.4,3194.3,10.39758]
[1720982903273,0.49143416,3194.4,3194.3,5.55892]
[1720982903503,0.49143416,3194.4,3194.3,8.06338]
[1720982903701,0.49143416,3194.4,3194.3,8.85538]
[1720982906239,0.49143416,3194.4,3194.3,6.35092]
[1720982906644,0.49143416,3194.4,3194.3,5.80092]
[1720982909365,0.49143416,3194.4,3194.3,8.885472]
[1720982909575,0.49143416,3194.4,3194.3,12.435472]
[1720982927291,0.49143416,3194.4,3194.3,25.295048]
[1720982927487,0.49143416,3194.4,3194.3,22.50495157]
[1720982927871,0.49143416,3194.4,3194.3,22.50494102]
[1720982928910,0.49143416,3194.4,3194.3,20.60271802]
[1720982929419,0.32761003,3194.5,3194.4,10.01752]
[1720982929712,2.4355,3195.2,3195.1,5.00766]
[1720982929879,2.4355,3195.2,3195.1,5.79966]
[1720982930079,2.76310105,3195.2,3195.1,5.79966]
[1720982935591,2.76310105,3195.2,3195.1,6.11266863]
[1720982936618,0.32760105,3195.2,3195.1,6.11266863]
[1720982939631,0.32760105,3195.2,3195.1,5.79966]
[1720982947701,0.32760105,3195.2,3195.1,5.00766]
[1720982956849,0.32760105,3195.2,3194.6,19.94]
[1720982956850,2.63190105,3195.2,3194.6,19.94]
[1720982957163,2.63190105,3195.2,3194.8,2.50402]
[1720982957164,2.3043,3195.1,3194.8,2.50402]
[1720982957438,2.3043,3195.1,3194.9,2.50397]
[1720982963551,0.32760105,3195.2,3195.1,5.00766]
[1720982990200,0.32760105,3195.2,3195.1,7.38916]
[1720982990510,0.32760105,3195.2,3195.1,8.457674]
[1720982992738,0.32760105,3195.2,3195.1,6.076174]
[1720983003010,0.32760105,3195.2,3195.1,5.00766]
[1720983012449,0.32760105,3195.2,3195.1,2.50383]
[1720983012821,0.40148171,3195.2,3195.1,2.50383]
[1720983020535,0.32760105,3195.2,3195.1,5.00766]
[1720983020735,0.32760105,3195.2,3195.1,5.819206]
[1720983021550,0.32760105,3195.2,3195.1,8.685006]
[1720983025932,0.32760105,3195.2,3195.1,6.369206]
[1720983028772,0.32760105,3195.2,3195.1,5.819206]
[1720983028974,0.32760105,3195.2,3195.1,5.79966]
[1720983032439,0.32760105,3195.2,3195.1,3.29583]
[1720983032681,0.32760105,3195.2,3195.1,5.79966]
[1720983035860,0.32760105,3195.2,3195.1,2.50383]
[1720983036166,0.44098119,3195.2,3195.1,3.29583]
[1720983036367,0.32760105,3195.2,3195.1,3.29583]
[1720983045720,0.32760105,3195.2,3195.1,5.79966]
[1720983047108,0.32760105,3195.2,3195.1,3.29583]
[1720983056063,0.59184116,3195.2,3194.7,3.0]
[1720983056332,2.3148,3195.1,3194.8,2.50402]
[1720983056929,2.80611043,3195.1,3194.8,2.50402]
[1720983060125,0.08596474,3195.0,3194.8,2.50402]
[1720983060312,0.11073314,3195.0,3194.8,2.50402]
[1720983075061,0.11073314,3195.0,3194.8,3.384006]
[1720983075268,0.11073314,3195.0,3194.9,8.17588]
[1720983075769,0.49131043,3195.1,3195.0,5.00782]
[1720983135839,2.83251043,3195.1,3195.0,5.00782]
[1720983137219,2.83251043,3195.1,3195.0,2.50391]
[1720983137845,2.94251944,3195.1,3195.0,2.50391]
[1720983144639,0.60131944,3195.1,3195.0,2.50391]
[1720983166889,0.57651068,3195.1,3195.0,2.50391]
[1720983167059,0.49131043,3195.1,3195.0,2.50391]
[1720983169194,0.57824907,3195.1,3195.0,2.50391]
[1720983169488,0.60095982,3195.1,3195.0,2.50391]
[1720983183311,2.3534,3195.0,3194.8,2.50406]
[1720983183462,2.3534,3195.0,3194.7,2.50412]
[1720983184123,2.3534,3195.0,3194.8,2.50406]
[1720983184345,0.08541956,3194.9,3194.8,2.50406]
[1720983187014,0.10986761,3194.9,3194.8,2.50406]
[1720983192224,2.3534,3195.0,3194.8,2.50406]
[1720983193908,0.10984423,3194.9,3194.8,2.50406]
[1720983195390,0.10984423,3194.9,3194.8,4.83156]
[1720983195835,0.49131043,3195.1,3194.9,2.50394]
[1720983196130,0.49131043,3195.1,3195.0,0.792]
[1720983199061,0.49131043,3195.1,3195.0,3.29591]
[1720983199553,0.51607353,3195.1,3195.0,3.29591]
[1720983200558,0.51607353,3195.1,3195.0,2.50391]
[1720983206641,0.60116515,3195.1,3195.0,2.50391]
[1720983207170,0.49131043,3195.1,3195.0,2.50391]
[1720983209173,0.51615736,3195.1,3195.0,2.50391]
[1720983221659,0.6043822,3195.1,3195.0,2.50391]
[1720983282621,0.6043822,3195.1,3195.0,5.508609]
[1720983282920,0.49131043,3195.1,3195.0,8.05532]
[1720983283317,0.59958846,3195.1,3195.0,8.05532]
[1720983287031,0.59958846,3195.1,3195.0,5.79982]
[1720983287242,0.49131043,3195.1,3195.0,5.79982]
[1720983290206,0.49131043,3195.1,3195.0,6.605352]
[1720983296262,0.49131043,3195.1,3195.0,5.79982]
[1720983301728,0.49131043,3195.1,3195.0,8.27842]
[1720983305929,0.49131043,3195.1,3195.0,5.79982]
[1720983310271,0.49131043,3195.1,3195.0,5.00782]
[1720983311168,0.49131043,3195.1,3195.0,2.50391]
[1720983311394,2.97681043,3195.1,3194.3,5.4366]
[1720983311684,3.27449147,3195.1,3194.5,5.50424]
[1720983312093,3.27449147,3195.1,3194.6,2.50418]
[1720983312385,2.97681043,3195.1,3194.6,2.50418]
[1720983312544,0.10769432,3195.0,3194.6,2.50418]
[1720983313748,0.10769432,3195.0,3194.7,2.50413]
[1720983314594,0.10769432,3195.0,3194.7,5.00821]
[1720983315765,0.10769432,3195.0,3194.7,2.50408]
[1720983316767,0.10769432,3195.0,3194.9,2.50399]
[1720983317369,0.10769432,3195.0,3194.7,2.50408]
[1720983318492,0.10769432,3195.0,3194.8,2.50404]
[1720983319659,0.10724439,3194.9,3194.8,2.50404]
[1720983320075,0.59857711,3194.9,3194.8,2.50404]
[1720983326499,0.59857711,3194.9,3194.8,5.588112]
[1720983327101,0.57945423,3194.9,3194.8,5.588112]
[1720983328671,0.57945423,3194.9,3194.8,8.024712]
[1720983328869,0.49133272,3194.9,3194.8,8.024712]
[1720983330900,0.49133272,3194.9,3194.8,5.0081]
[1720983340151,0.49133272,3194.9,3194.8,5.8001]
[1720983350530,2.4291,3195.2,3195.0,2.50387]
[1720983350932,0.08434751,3195.1,3195.0,2.50387]
[1720983354463,0.10021993,3195.1,3195.0,2.50387]
[1720983360463,0.59152351,3195.1,3195.0,2.50387]
[1720983397051,0.59152351,3195.1,3194.9,0.31299884]
[1720983398828,0.59152351,3195.1,3194.9,2.81697884]
[1720983403156,0.59152351,3195.1,3194.9,0.31299884]
[1720983411092,0.59152351,3195.1,3194.9,2.81697884]
[1720983422595,0.59152351,3195.1,3195.0,4.78711]
[1720983422802,0.59152351,3195.1,3195.0,5.54751888]
[1720983422968,0.49130358,3195.1,3195.0,5.54751888]
[1720983423863,0.49130358,3195.1,3195.0,8.05142888]
[1720983424069,0.49130358,3195.1,3195.0,8.84342888]
[1720983424499,0.32769194,3195.6,3195.5,4.78672]
[1720983424686,0.81894654,3195.6,3195.5,4.78672]
[1720983425667,0.8372601,3195.6,3195.5,2.50352]
[1720983425873,0.8372601,3195.6,3195.3,2.50361]
[1720983426800,1.16880611,3195.6,3195.3,2.50361]
[1720983427904,0.8372601,3195.6,3195.3,2.50361]
[1720983430411,0.8372601,3195.6,3195.3,5.00722]
[1720983430707,0.8372601,3195.6,3195.4,2.50358]
[1720983431619,0.0686758,3195.5,3195.4,2.50358]
[1720983432904,0.08711849,3195.5,3195.4,2.50358]
[1720983439396,0.08711849,3195.5,3195.4,4.92658]
[1720983442895,0.08711849,3195.5,3195.4,2.50358]
[1720983457177,0.08711849,3195.5,3195.4,5.00717]
[1720983463443,0.08711849,3195.5,3195.4,2.50358]
[1720983464387,0.42291499,3195.5,3195.4,2.50358]
[1720983490464,0.08711849,3195.5,3195.4,2.50358]
[1720983499650,0.08711849,3195.5,3195.4,4.97748]
[1720983502665,0.08711849,3195.5,3195.4,2.50358]
[1720983517739,0.08711849,3195.5,3195.4,2.50359]
[1720983519425,0.08711849,3195.5,3195.0,2.50388]
[1720983519764,3.30744654,3195.6,3195.1,2.50382]
[1720983520048,0.33074465,3195.5,3195.2,2.50373]
[1720983520411,0.0834519,3195.4,3195.2,2.50373]
[1720983525424,0.0834519,3195.4,3195.0,5.00772]
[1720983525851,3.30744654,3195.6,3195.0,5.00772]
[1720983527325,3.30744654,3195.6,3195.1,2.50381]
[1720983527526,4.21806019,3195.6,3195.1,2.50381]
[1720983536975,1.72956019,3195.6,3195.2,2.50372]
[1720983537276,0.08280704,3195.5,3195.2,2.50372]
[1720983538182,0.08280704,3195.5,3195.2,5.00743]
[1720983540683,0.08280704,3195.5,3195.3,2.50367]
[1720983547172,0.08280704,3195.5,3195.4,2.3347]
[1720983547474,0.08280704,3195.5,3195.3,5.00728]
[1720983547675,0.08280704,3195.5,3195.3,2.50361]
[1720983548394,0.08280704,3195.5,3195.3,5.00724]
[1720983553218,0.08280704,3195.5,3195.4,2.50359]
[1720983590074,0.08280704,3195.5,3195.4,4.86349]
[1720983598034,0.41046684,3195.5,3195.4,4.86349]
[1720983600282,0.41046684,3195.5,3195.4,2.50359]
[1720983604294,0.74957898,3195.5,3195.1,2.3003]
[1720983604622,2.4894,3195.2,3194.9,0.31299884]
[1720983604917,2.4894,3195.0,3194.9,0.31299884]
[1720983605456,2.9807766,3195.0,3194.9,0.31299884]
[1720983606463,0.4913766,3195.0,3194.9,0.31299884]
[1720983609980,0.6473766,3195.0,3194.9,0.31299884]
[1720983612601,0.6473766,3195.0,3194.9,3.33885372]
[1720983613365,0.156,3195.0,3194.9,3.33885372]
[1720983613975,0.156,3195.0,3194.9,5.84284372]
[1720983614175,0.156,3195.0,3194.9,6.63484372]
[1720983618597,0.156,3195.0,3194.9,9.03644372]
[1720983618963,0.64731813,3195.0,3194.9,9.03644372]
[1720983625925,0.64731813,3195.0,3194.9,11.54043372]
[1720983631801,0.64731813,3195.0,3194.9,23.88131972]
[1720983632006,0.64731813,3195.0,3194.9,22.48131972]
[1720983632330,0.64731813,3195.0,3194.9,21.66017172]
[1720983632783,0.64731813,3195.0,3194.9,17.04442372]
[1720983632989,0.64731813,3195.0,3194.9,14.54043372]
[1720983633238,0.156,3195.0,3194.9,14.54043372]
[1720983633590,0.64727152,3195.0,3194.9,14.54043372]
[1720983650321,0.64727152,3195.0,3194.9,21.38241972]
[1720983650729,0.14217152,3195.0,3194.9,23.88640972]
[1720983650927,0.32763067,3195.8,3195.7,5.00672]
[1720983651655,0.81887081,3195.8,3195.7,5.00672]
[1720983657046,0.81887081,3195.8,3195.7,5.31971884]
[1720983659452,0.81887081,3195.8,3195.7,5.00672]
[1720983660888,3.09307081,3195.8,3195.7,5.00672]
[1720983667583,0.81887081,3195.8,3195.7,5.00672]
[1720983669057,0.81887081,3195.8,3195.7,2.50336]
[1720983675207,3.23267081,3195.8,3195.7,2.50336]
[1720983677581,3.30679574,3195.8,3195.7,2.50336]
[1720983678118,3.30679574,3195.8,3195.4,2.50358]
[1720983678323,3.30679574,3195.8,3195.4,5.00711]
[1720983678618,3.23267081,3195.8,3195.4,5.00711]
[1720983678803,3.23267081,3195.8,3195.4,2.50353]
[1720983679909,3.23267081,3195.8,3195.4,5.00707]
[1720983680501,2.74143067,3195.8,3195.4,5.00707]
[1720983681398,2.74143067,3195.8,3195.5,2.50351]
[1720983684300,0.32763067,3195.8,3195.7,5.00672]
[1720983690511,0.81886605,3195.8,3195.7,5.00672]
[1720983701917,0.81886605,3195.8,3195.7,7.33852]
[1720983702122,0.49123538,3195.8,3195.7,12.84188]
[1720983702367,0.49123538,3195.8,3195.7,14.205268]
[1720983721726,0.49123538,3195.8,3195.7,11.873468]
[1720983746087,0.49123538,3195.8,3195.7,8.00672]
[1720983746456,0.49123538,3195.8,3195.7,8.79872]
[1720983765000,1.57508344,3195.8,3195.7,8.79872]
[1720983766601,1.57508482,3195.8,3195.7,8.79872]
[1720983767291,0.49123538,3195.8,3195.7,8.79872]
[1720983767607,0.49123538,3195.8,3195.7,9.928933]
[1720983768270,1.57507808,3195.8,3195.7,9.928933]
[1720983770885,0.49123538,3195.8,3195.7,9.928933]
[1720983771309,1.57507379,3195.8,3195.7,9.928933]
[1720983773911,1.57507379,3195.8,3195.7,12.432293]
[1720983774414,1.57507499,3195.8,3195.7,12.432293]
[1720983774712,0.49123538,3195.8,3195.7,12.432293]
[1720983775076,1.5750693,3195.8,3195.7,12.432293]
[1720983777005,1.5750693,3195.8,3195.7,9.928933]
[1720983777787,1.57506803,3195.8,3195.7,9.928933]
[1720983778527,0.49123538,3195.8,3195.7,9.136933]
[1720983778739,0.49123538,3195.8,3195.7,8.00672]
[1720983778942,0.49123538,3195.8,3195.7,8.79872]
[1720983779143,1.57506979,3195.8,3195.7,8.79872]
[1720983780844,0.49123538,3195.8,3195.7,8.79872]
[1720983781345,1.57511708,3195.8,3195.7,8.79872]
[1720983784334,1.57509176,3195.8,3195.7,9.928928]
[1720983786455,1.57508775,3195.8,3195.7,9.928928]
[1720983787158,0.49123538,3195.8,3195.7,9.928928]
[1720983788121,1.57508214,3195.8,3195.7,9.928928]
[1720983790577,0.49123538,3195.8,3195.7,9.928928]
[1720983790952,1.57506753,3195.8,3195.7,9.928928]
[1720983794462,1.57506166,3195.8,3195.7,9.928928]
[1720983796664,0.49123538,3195.8,3195.7,9.928928]
[1720983797511,0.49123538,3195.8,3195.7,8.79872]
[1720983798160,1.57510979,3195.8,3195.7,8.79872]
[1720983801202,1.57509952,3195.8,3195.7,8.79872]
[1720983804407,1.5750464,3195.8,3195.7,11.24402]
[1720983804908,1.57504583,3195.8,3195.7,11.24402]
[1720983805064,1.57504583,3195.8,3195.7,12.618758]
[1720983807104,0.49123538,3195.8,3195.7,12.618758]
[1720983807503,1.57504918,3195.8,3195.7,12.618758]
[1720983807707,0.49123538,3195.8,3195.7,12.618758]
[1720983808085,1.57505099,3195.8,3195.7,12.618758]
[1720983809683,1.57505099,3195.8,3195.7,10.173458]
[1720983810910,1.57505099,3195.8,3195.7,12.676818]
[1720983811416,1.57508393,3195.8,3195.7,12.676818]
[1720983811983,1.57508393,3195.8,3195.7,10.173458]
[1720983812189,1.57508393,3195.8,3195.7,8.79872]
[1720983814919,1.57509665,3195.8,3195.7,8.79872]
[1720983815212,1.57508842,3195.8,3195.7,8.79872]
[1720983817414,1.57509589,3195.8,3195.7,8.79872]
[1720983818223,0.49123538,3195.8,3195.7,8.79872]
[1720983818507,1.57509165,3195.8,3195.7,8.79872]
[1720983818872,0.49123538,3195.8,3195.7,8.79872]
[1720983819780,1.57509051,3195.8,3195.7,8.79872]
[1720983821713,1.57509358,3195.8,3195.7,8.79872]
[1720983823439,1.57509358,3195.8,3195.7,9.928932]
[1720983825245,1.57509042,3195.8,3195.7,9.928932]
[1720983825737,1.57509096,3195.8,3195.7,9.928932]
[1720983825938,1.57509096,3195.8,3195.7,8.79872]
[1720983827906,1.57508979,3195.8,3195.7,8.79872]
[1720983828502,0.49123538,3195.8,3195.7,8.79872]
[1720983828918,1.57508988,3195.8,3195.7,8.79872]
[1720983831908,0.49123538,3195.8,3195.7,8.79872]
[1720983832217,1.57510667,3195.8,3195.7,8.79872]
[1720983835343,0.49123538,3195.8,3195.7,8.79872]
[1720983835546,1.57511841,3195.8,3195.7,8.79872]
[1720983835713,0.49123538,3195.8,3195.7,8.79872]
[1720983835911,1.57511769,3195.8,3195.7,8.79872]
[1720983838119,1.57511729,3195.8,3195.7,8.79872]
[1720983838723,0.49123538,3195.8,3195.7,8.79872]
[1720983838925,1.57510374,3195.8,3195.7,8.79872]
[1720983841333,0.49123538,3195.8,3195.7,8.79872]
[1720983841539,1.57509183,3195.8,3195.7,8.79872]
[1720983844961,1.57509925,3195.8,3195.7,8.79872]
[1720983845380,1.57509952,3195.8,3195.7,8.79872]
[1720983848255,1.57511369,3195.8,3195.7,8.79872]
[1720983851575,1.57514242,3195.8,3195.7,8.79872]
[1720983851936,3.97094242,3195.8,3195.7,5.50336]
[1720983852139,3.97094242,3195.8,3195.7,3.0]
[1720983852140,4.36803666,3195.8,3195.7,3.0]
[1720983852342,2.3958,3195.7,3195.2,3.29569]
[1720983852659,2.3958,3195.7,3195.4,2.50352]
[1720983852660,1.08390704,3195.6,3195.4,2.50352]
[1720983852837,1.08390704,3195.6,3195.5,6.29552]
[1720983854886,2.3958,3195.7,3195.5,6.29552]
[1720983855043,1.08398104,3195.6,3195.5,6.29552]
[1720983855376,2.3958,3195.7,3195.6,2.50344]
[1720983855536,3.47979262,3195.7,3195.6,2.50344]
[1720983858473,3.47979841,3195.7,3195.6,2.50344]
[1720983858687,1.08399841,3195.7,3195.6,2.50344]
[1720983858841,1.08399841,3195.7,3195.6,8.336876]
[1720983859556,1.08399841,3195.7,3195.6,5.886776]
[1720983861794,0.49123538,3195.8,3195.7,5.00672]
[1720983861982,1.57518537,3195.8,3195.7,5.79872]
[1720983865286,1.57518549,3195.8,3195.7,5.79872]
[1720983865592,0.49123538,3195.8,3195.7,6.7665816]
[1720983865756,1.57518532,3195.8,3195.7,6.7665816]
[1720983868470,0.49123538,3195.8,3195.7,6.7665816]
[1720983868981,1.57517687,3195.8,3195.7,6.7665816]
[1720983870096,1.57517687,3195.8,3195.7,5.79872]
[1720983872092,1.57521055,3195.8,3195.7,5.79872]
[1720983875562,1.57519982,3195.8,3195.7,5.79872]
[1720983876098,1.57519604,3195.8,3195.7,5.79872]
[1720983878366,1.5751684,3195.8,3195.7,5.79872]
[1720983879167,1.57516882,3195.8,3195.7,5.79872]
[1720983879688,1.57517036,3195.8,3195.7,5.79872]
[1720983880187,1.57517714,3195.8,3195.7,5.79872]
[1720983883164,0.49123538,3195.8,3195.7,5.79872]
[1720983883918,1.5751768,3195.8,3195.7,5.79872]
[1720983886818,1.57520691,3195.8,3195.7,5.79872]
[1720983887112,1.57520386,3195.8,3195.7,5.79872]
[1720983889875,0.49123538,3195.8,3195.7,5.79872]
[1720983890073,1.57521092,3195.8,3195.7,5.79872]
[1720983893490,1.57519532,3195.8,3195.7,5.79872]
[1720983896810,0.49123538,3195.8,3195.7,5.79872]
[1720983897021,1.57520062,3195.8,3195.7,5.79872]
[1720983897312,0.49123538,3195.8,3195.7,5.79872]
[1720983897926,1.5752056,3195.8,3195.7,5.79872]
[1720983900293,1.57518393,3195.8,3195.7,5.79872]
[1720983902833,0.49123538,3195.8,3195.7,5.79872]
[1720983903036,1.57520238,3195.8,3195.7,5.79872]
[1720983906443,1.57518108,3195.8,3195.7,5.79872]
[1720983906930,1.57517568,3195.8,3195.7,5.79872]
[1720983907136,1.57517568,3195.8,3195.7,12.414732]
[1720983907632,1.57517568,3195.8,3195.7,8.79872]
[1720983907812,1.57517568,3195.8,3195.7,8.00672]
[1720983909836,1.57519491,3195.8,3195.7,8.00672]
[1720983912031,3.86369491,3195.8,3195.7,2.50336]
[1720983912230,3.86369491,3195.8,3195.5,2.50348]
[1720983912231,4.2500644,3195.8,3195.5,2.50348]
[1720983912404,1.08395953,3195.7,3195.5,2.50348]
[1720983912605,1.08395953,3195.6,3195.5,2.50348]
[1720983912809,1.08395953,3195.6,3195.5,5.50348]
[1720983913008,1.08411212,3195.6,3195.5,5.50348]
[1720983916350,3.16610487,3195.8,3195.5,5.50348]
[1720983916533,1.08410307,3195.7,3195.5,5.50348]
[1720983916843,1.08410294,3195.6,3195.5,5.50348]
[1720983919708,3.16610487,3195.8,3195.5,5.50348]
[1720983919912,1.08409019,3195.7,3195.5,5.50348]
[1720983920223,1.08409019,3195.6,3195.5,5.50348]
[1720983923123,0.42501951,3195.6,3195.5,3.0]
[1720983923322,2.2885,3195.5,3195.4,3.0]
[1720983923550,3.37259482,3195.5,3195.4,3.0]
[1720983923861,3.43731158,3195.5,3195.4,3.0]
[1720983924066,3.82354469,3195.5,3195.4,3.0]
[1720983925236,3.37259482,3195.5,3195.4,3.0]
[1720983925632,3.43732536,3195.5,3195.4,3.0]
[1720983926728,3.43732536,3195.5,3195.3,2.50365]
[1720983926928,2.35323054,3195.5,3195.3,2.50365]
[1720983927154,1.08417,3195.4,3195.3,2.50365]
[1720983927426,1.10082037,3195.4,3195.3,2.50365]
[1720983929131,1.10082365,3195.4,3195.3,2.50365]
[1720983930078,1.10082264,3195.4,3195.3,2.50365]
[1720983933380,0.01665037,3195.4,3195.3,2.50365]
[1720983933549,1.10082312,3195.4,3195.3,2.50365]
[1720983934746,1.20388822,3195.4,3195.3,5.50365]
[1720983936646,1.20388822,3195.4,3195.3,2.50365]
[1720983936842,0.11971547,3195.4,3195.3,2.50365]
[1720983937046,1.20389804,3195.4,3195.3,2.50365]
[1720983937260,0.11971547,3195.4,3195.3,2.50365]
[1720983937684,1.20389793,3195.4,3195.3,2.50365]
[1720983940380,0.11971547,3195.4,3195.3,2.50365]
[1720983941197,1.20389752,3195.4,3195.3,2.50365]
[1720983941520,3.56769752,3195.4,3194.9,6.29597]
[1720983941669,0.35676975,3195.3,3195.0,2.50389]
[1720983941857,1.4409518,3195.3,3195.1,3.0]
[1720983942061,1.08418205,3195.2,3195.1,3.0]
[1720983942769,1.08418205,3195.2,3195.1,3.792]
[1720983943153,1.08418205,3195.3,3195.1,6.29582]
[1720983943587,1.08418205,3195.5,3195.1,6.29582]
[1720983943890,1.08423208,3195.4,3195.1,6.29582]
[1720983944189,1.08423208,3195.3,3195.1,6.29582]
[1720983944353,1.08423208,3195.4,3195.1,6.29582]
[1720983944549,1.08423208,3195.3,3195.1,6.29582]
[1720983944787,1.08423208,3195.2,3195.1,6.29582]
[1720983947355,1.08420483,3195.2,3195.1,6.29582]
[1720983947556,0.3447982,3195.5,3195.1,6.29582]
[1720983947768,1.08422508,3195.4,3195.1,6.29582]
[1720983948075,1.08422508,3195.3,3195.1,6.29582]
[1720983948278,1.08422508,3195.4,3195.1,6.29582]
[1720983949998,1.08422853,3195.3,3195.1,6.29582]
[1720983950311,1.08422853,3195.2,3195.1,6.29582]
[1720983950461,1.08422853,3195.4,3195.1,6.29582]
[1720983950657,0.3447982,3195.5,3195.1,6.29582]
[1720983950863,1.0842265,3195.3,3195.1,6.29582]
[1720983951199,1.0842265,3195.2,3195.1,6.29582]
[1720983954103,0.3447982,3195.5,3195.1,6.29582]
[1720983954311,1.08422934,3195.4,3195.1,6.29582]
[1720983956638,0.3447982,3195.5,3195.1,6.29582]
[1720983956639,1.08422934,3195.3,3195.1,6.29582]
[1720983956796,1.08422934,3195.4,3195.1,6.29582]
[1720983957524,0.3447982,3195.5,3195.1,6.29582]
[1720983957729,1.08423588,3195.4,3195.1,6.29582]
[1720983957901,0.3447982,3195.5,3195.1,6.29582]
[1720983958100,1.08422908,3195.4,3195.1,6.29582]
[1720983958523,1.08422908,3195.3,3195.1,6.29582]
[1720983958830,1.08422908,3195.2,3195.1,6.29582]
[1720983960824,1.08423022,3195.2,3195.1,6.29582]
[1720983963538,2.3638,3195.6,3195.1,3.792]
[1720983963839,1.08416604,3195.5,3195.2,2.50374]
[1720983964035,1.08416604,3195.4,3195.2,2.50374]
[1720983964341,1.08416604,3195.3,3195.2,2.50374]
[1720983964639,1.08416604,3195.3,3195.2,5.50374]
[1720983964817,1.08416604,3195.5,3195.2,5.50374]
[1720983965205,0.1034077,3195.4,3195.2,5.50374]
[1720983965406,1.08416604,3195.3,3195.2,5.50374]
[1720983966034,1.08416604,3195.5,3195.2,5.50374]
[1720983966214,1.08416604,3195.4,3195.2,5.50374]
[1720983966410,0.09988572,3195.4,3195.2,5.50374]
[1720983966637,1.08416604,3195.3,3195.2,5.50374]
[1720983967161,1.0841739,3195.3,3195.2,5.50374]
[1720983967451,2.3638,3195.6,3195.2,5.50374]
[1720983967754,0.0998617,3195.3,3195.2,5.50374]
[1720983967967,1.08417971,3195.3,3195.2,5.50374]
[1720983969773,1.08417955,3195.3,3195.2,5.50374]
[1720983970359,2.3638,3195.6,3195.2,5.50374]
[1720983970670,1.18408892,3195.5,3195.2,8.00744]
[1720983970870,1.08417917,3195.4,3195.2,8.00744]
[1720983971038,1.08417917,3195.3,3195.2,5.5037]
[1720983974065,1.08417465,3195.3,3195.2,8.00739]
[1720983977244,2.3638,3195.6,3195.3,2.50367]
[1720983977447,2.60018,3195.6,3195.3,2.50367]
[1720983977845,1.08416826,3195.5,3195.3,2.50367]
[1720983978044,1.08416826,3195.4,3195.3,2.50367]
[1720983978277,1.10241927,3195.4,3195.3,2.50367]
[1720983979885,1.17733108,3195.4,3195.3,2.50367]
[1720983980682,0.09316074,3195.4,3195.3,2.50367]
[1720983980885,1.17733067,3195.4,3195.3,2.50367]
[1720983983761,1.17733067,3195.4,3195.3,11.653446]
[1720983983961,2.4645,3196.8,3196.1,2.4705]
[1720983984172,2.4645,3197.1,3196.3,0.792]
[1720983984376,0.08255733,3196.7,3196.3,0.792]
[1720983984687,0.07927724,3196.6,3196.5,2.50269]
[1720984001575,0.07927724,3196.6,3196.1,2.50297]
[1720984001576,2.45137724,3196.6,3196.1,2.50297]
[1720984001897,2.61723772,3196.6,3196.2,3.0]
[1720984002728,2.61723772,3196.6,3195.9,2.50318]
[1720984003019,5.11994772,3196.6,3195.9,2.50318]
[1720984003383,0.05789325,3196.5,3195.9,2.50318]
[1720984003585,0.57567735,3196.5,3195.9,2.50318]
[1720984005030,0.01609065,3196.4,3195.9,2.50318]
[1720984005542,0.5177841,3196.5,3195.9,2.50318]
[1720984005882,0.05811591,3196.4,3195.9,2.50318]
[1720984006286,0.5177841,3196.5,3195.9,2.50318]
[1720984006480,0.81404618,3196.4,3195.9,2.50318]
[1720984006700,0.86956315,3196.4,3195.9,2.50318]
[1720984006925,0.81404618,3196.4,3195.9,2.50318]
[1720984011789,0.0715836,3196.3,3195.9,2.50318]
[1720984020464,0.0715836,3196.3,3196.1,2.503]
[1720984039595,2.4066,3196.2,3196.1,2.503]
[1720984039792,2.65441836,3196.2,3196.1,2.503]
[1720984039994,2.4066,3196.2,3196.1,2.503]
[1720984040198,2.46654993,3196.2,3196.1,2.503]
[1720984040700,2.46654993,3196.2,3196.0,2.50311]
[1720984050538,0.05994993,3196.2,3196.0,2.50311]
[1720984054938,0.05896097,3196.2,3196.0,2.50311]
[1720984066754,0.04612998,3196.2,3196.0,2.50311]
[1720984068961,0.04612998,3196.2,3195.8,2.50323]
[1720984069143,0.04612998,3196.2,3195.9,5.50319]
[1720984071430,2.3592,3196.4,3195.9,5.50319]
[1720984071845,0.04520505,3196.3,3195.9,5.50319]
[1720984084282,0.04520505,3196.3,3195.9,8.00634]
[1720984087904,0.04520505,3196.3,3196.0,2.5031]
[1720984092633,0.04520505,3196.3,3196.1,2.50304]
[1720984093402,0.04520505,3196.3,3196.2,2.50297]
[1720984097762,0.04520505,3196.3,3196.2,2.81584153]
[1720984103071,0.04520505,3196.3,3196.2,5.31881153]
[1720984103368,0.03059085,3196.3,3196.2,5.31881153]
[1720984103576,0.32748758,3196.6,3196.4,2.50274]
[1720984103733,0.01284221,3196.5,3196.4,2.50274]
[1720984103938,0.03888408,3196.5,3196.4,2.50274]
[1720984144084,0.03888408,3196.5,3196.2,2.81577153]
[1720984144281,0.03888408,3196.5,3196.2,5.31868153]
[1720984144515,2.38108408,3196.5,3196.2,2.81577153]
[1720984144703,2.65194125,3196.5,3196.2,0.31287153]
[1720984159438,3.14308883,3196.5,3196.2,0.31287153]